bitfinex-derivatives/quotes_ETHF0:USTF0_20241229
["timestamp","ask_amount","ask_price","bid_price","bid_amount"]
[1735509365426,0.29898,3350.8,3350.6,0.29899]
[1735509365918,0.4786,3350.9,3350.3,2.26295516]
[1735509366124,0.4786,3350.9,3350.6,0.29899]
[1735509366125,0.77757,3350.9,3350.6,0.29899]
[1735509366916,0.29897,3350.9,3350.6,0.29899]
[1735509367222,0.29897,3350.9,3350.7,0.4843]
[1735509367917,0.29897,3350.8,3350.7,0.4843]
[1735509369425,0.29897,3350.9,3350.7,0.4843]
[1735509369625,3.2078,3351.0,3350.7,0.78328]
[1735509369925,0.29897,3350.9,3350.7,0.78328]
[1735509370128,3.2078,3351.0,3350.7,0.4843]
[1735509370522,3.2078,3351.0,3350.9,0.29897]
[1735509370714,0.5084,3351.2,3350.9,0.29897]
[1735509371022,0.5084,3351.2,3351.0,0.29896]
[1735509371227,3.2078,3351.5,3350.8,0.4889]
[1735509371428,0.29894,3351.3,3351.0,0.29895]
[1735509371722,0.29892,3351.4,3351.2,0.29893]
[1735509372829,3.6749,3351.5,3351.2,0.29893]
[1735509373227,0.29892,3351.4,3351.2,0.29893]
[1735509375324,3.6749,3351.5,3350.8,0.4889]
[1735509375527,3.2078,3351.9,3351.2,2.26295516]
[1735509375724,0.29889,3351.8,3351.6,0.2989]
[1735509376128,3.50668,3351.9,3351.7,0.29889]
[1735509376326,3.2078,3351.9,3351.5,2.26295516]
[1735509376521,2.32706395,3352.1,3351.6,3.6737]
[1735509376731,2.32706395,3352.1,3351.6,4.6333]
[1735509376929,2.62593395,3352.1,3351.7,0.29889]
[1735509377224,2.62593395,3352.1,3351.6,4.6333]
[1735509377225,0.78425,3352.2,3352.0,0.29887]
[1735509377427,0.78425,3352.2,3351.8,2.26295516]
[1735509377627,0.78425,3352.2,3352.0,0.29886]
[1735509377829,0.4854,3352.2,3351.8,2.26295516]
[1735509378125,2.32706395,3352.4,3352.3,0.29884]
[1735509378925,2.32706395,3352.8,3352.3,0.9626]
[1735509379423,0.29883,3352.4,3352.3,0.4732]
[1735509381529,0.29883,3352.5,3352.3,0.77204]
[1735509381736,3.50662,3352.6,3352.4,0.29882]
[1735509382034,0.29882,3352.5,3352.4,2.56177516]
[1735509382233,0.29882,3352.5,3352.4,2.26295516]
[1735509382431,0.29883,3352.4,3352.3,0.4732]
[1735509382636,0.74707,3352.5,3351.6,3.6972]
[1735509382838,1.68872,3352.3,3351.6,3.9961]
[1735509383049,0.473,3352.3,3352.0,2.26295516]
[1735509383235,3.2078,3352.6,3352.1,0.4948]
[1735509383439,3.2078,3352.6,3352.5,0.29882]
[1735509383848,3.2078,3352.6,3352.5,0.81072]
[1735509384243,0.2988,3352.8,3352.6,0.29881]
[1735509384444,0.2988,3352.8,3352.5,0.5119]
[1735509384646,0.2988,3352.8,3352.7,0.29881]
[1735509384845,0.29879,3352.9,3352.7,0.29881]
[1735509385250,0.29879,3352.9,3352.8,0.5053]
[1735509386850,0.29882,3352.5,3352.4,5.47075516]
[1735509387050,0.29882,3352.5,3352.4,2.26295516]
[1735509387255,0.29882,3352.5,3352.4,2.56178516]
[1735509387545,0.29882,3352.5,3352.4,2.26295516]
[1735509388149,0.29882,3352.5,3352.4,2.56178516]
[1735509388548,3.2078,3353.0,3352.4,2.56178516]
[1735509388944,0.29882,3352.5,3352.4,2.56178516]
[1735509389448,0.29885,3352.2,3352.1,2.26295516]
[1735509389650,0.29886,3352.1,3352.0,0.5053]
[1735509392152,0.29889,3351.9,3351.7,0.29889]
[1735509392348,3.2078,3352.3,3351.7,0.29889]
[1735509392548,0.29889,3351.8,3351.7,0.29889]
[1735509392751,3.2078,3352.3,3351.7,0.29889]
[1735509392951,0.29888,3351.9,3351.8,0.29889]
[1735509393353,3.2078,3352.3,3351.8,0.29889]
[1735509393553,0.29888,3352.0,3351.8,0.29889]
[1735509393756,3.2078,3352.3,3351.6,3.7112]
[1735509393956,0.2989,3351.6,3351.5,0.4911]
[1735509394150,0.29889,3351.8,3351.7,0.29889]
[1735509394553,3.2078,3352.3,3351.5,2.75405516]
[1735509394946,0.29887,3352.0,3351.9,0.29888]
[1735509395155,3.2078,3352.3,3352.2,0.29885]
[1735509395553,3.50664,3352.3,3352.2,0.29885]
[1735509395760,3.2078,3352.3,3351.8,0.29889]
[1735509396055,0.29887,3352.1,3351.9,0.29887]
[1735509396253,3.2078,3352.3,3351.8,2.26295516]
[1735509396457,3.50665,3352.3,3352.2,0.29885]
[1735509396954,3.2078,3352.3,3352.2,0.29885]
[1735509397356,0.00334949,3352.9,3352.2,3.6748]
[1735509397749,0.29881,3352.7,3352.6,0.29881]
[1735509399159,0.00334949,3352.9,3352.6,0.29881]
[1735509399454,0.00334949,3352.9,3352.2,3.6748]
[1735509399455,0.00334949,3352.9,3352.8,0.2988]
[1735509400663,0.30213949,3352.9,3352.8,0.2988]
[1735509402467,0.00334949,3352.9,3352.8,0.2988]
[1735509402657,0.00334949,3352.9,3352.8,0.8097]
[1735509408455,0.00334949,3352.9,3352.6,3.50661]
[1735509408456,0.29881,3352.7,3352.6,3.50661]
[1735509408658,0.29881,3352.7,3351.6,9.30832772]
[1735509408659,0.29887,3352.0,3351.6,9.30832772]
[1735509408863,3.50667,3352.0,3351.6,9.30832772]
[1735509409360,3.50667,3352.0,3351.7,0.29889]
[1735509409665,3.50667,3352.0,3351.6,9.30832772]
[1735509409666,3.2078,3352.0,3351.6,2.26295516]
[1735509409966,0.29888,3351.9,3351.7,0.29889]
[1735509410664,0.29888,3351.9,3351.6,2.26295516]
[1735509410665,3.50667,3352.0,3351.8,0.29888]
[1735509410860,3.2078,3352.0,3351.6,2.26295516]
[1735509411166,0.29889,3351.8,3351.6,2.56185516]
[1735509411866,0.29888,3351.9,3351.7,0.2989]
[1735509412164,3.50667,3352.0,3351.8,0.29889]
[1735509412358,3.2078,3352.0,3351.9,0.29888]
[1735509412559,3.50667,3352.0,3351.9,0.29888]
[1735509413570,3.2078,3352.0,3351.9,0.29888]
[1735509413764,3.50667,3352.0,3351.9,0.29888]
[1735509415565,3.2078,3352.0,3351.9,0.29888]
[1735509416460,3.2078,3352.0,3351.9,2.56183516]
[1735509417961,3.2078,3352.0,3351.9,0.29888]
[1735509419563,0.29887,3352.1,3352.0,0.29887]
[1735509419862,3.2078,3352.1,3352.0,0.29887]
[1735509422061,3.2078,3352.5,3352.4,0.29883]
[1735509423863,3.2078,3352.5,3352.3,0.5114]
[1735509424067,0.29883,3352.4,3352.3,0.5114]
[1735509425971,0.29883,3352.4,3352.3,0.81024]
[1735509426265,3.2078,3352.5,3352.4,0.29883]
[1735509427968,3.2078,3352.5,3352.4,7.31893157]
[1735509428665,0.00334949,3352.9,3352.8,0.2988]
[1735509430466,0.2988,3352.8,3352.7,7.02010157]
[1735509430764,3.5066,3352.8,3352.7,7.02010157]
[1735509430965,0.2988,3352.8,3352.7,7.02010157]
[1735509431169,3.5066,3352.8,3352.7,7.02010157]
[1735509431666,4.0144,3352.8,3352.7,7.02010157]
[1735509431972,0.29882,3352.6,3352.4,5.9940995]
[1735509432175,0.29882,3352.6,3352.5,0.29882]
[1735509433168,3.2078,3352.8,3352.4,5.6952695]
[1735509433370,0.29882,3352.6,3352.4,5.9940995]
[1735509433873,0.29882,3352.6,3352.5,0.29882]
[1735509434574,0.29882,3352.6,3352.4,4.9905995]
[1735509434774,0.29882,3352.6,3352.5,0.29882]
[1735509435070,0.29882,3352.6,3352.4,4.9905995]
[1735509435276,0.29882,3352.6,3352.5,0.29882]
[1735509435471,0.29881,3352.7,3352.5,0.29882]
[1735509436176,0.29881,3352.7,3352.6,0.29882]
[1735509436474,0.29881,3352.7,3352.5,0.29882]
[1735509436670,3.2078,3352.8,3352.4,4.6917695]
[1735509436875,3.5066,3352.8,3352.6,0.29881]
[1735509437268,3.2078,3352.8,3352.7,0.29881]
[1735509438269,0.29881,3352.7,3352.6,0.29881]
[1735509438466,0.29881,3352.7,3352.5,4.9905895]
[1735509438677,0.29881,3352.7,3352.6,0.29882]
[1735509438980,0.29881,3352.7,3352.5,4.6917695]
[1735509438981,3.2078,3352.8,3352.5,4.6917695]
[1735509439171,0.29882,3352.6,3352.5,4.9905895]
[1735509439365,0.29881,3352.7,3352.5,4.9905895]
[1735509439974,0.29881,3352.7,3352.5,0.29882]
[1735509440373,0.29881,3352.7,3352.6,0.29881]
[1735509442076,0.00334949,3352.9,3352.8,0.2988]
[1735509444581,0.00334949,3352.9,3352.8,1.3096]
[1735509444775,0.00334949,3352.9,3352.8,6.0013695]
[1735509445285,0.00334949,3352.9,3352.8,9.2091695]
[1735509450484,0.00334949,3352.9,3352.8,11.47212466]
[1735509450883,0.00334949,3352.9,3352.8,6.78035516]
[1735509452188,0.00334949,3352.9,3352.8,13.80045673]
[1735509453083,0.30214949,3352.9,3352.8,11.23870157]
[1735509453280,3.50994949,3352.9,3352.8,7.02010157]
[1735509453488,0.00334949,3352.9,3352.8,0.79401]
[1735509454185,0.30214949,3352.9,3352.8,0.79401]
[1735509455687,0.00334949,3352.9,3352.8,0.79401]
[1735509455877,0.30214949,3352.9,3352.8,0.79401]
[1735509456284,0.30214949,3352.9,3352.8,5.48563218]
[1735509457487,0.30214949,3352.9,3352.8,0.79401]
[1735509460090,0.00334949,3352.9,3352.8,0.79401]
[1735509460292,0.00334949,3352.9,3352.8,5.48839657]
[1735509461585,0.00334949,3352.9,3352.8,0.79401]
[1735509461790,0.00334949,3352.9,3352.8,3.05696516]
[1735509462186,2.32706395,3353.3,3353.2,0.29877]
[1735509462393,2.32706395,3353.3,3353.2,5.76952516]
[1735509462593,2.32706395,3353.3,3353.2,2.56172516]
[1735509463190,2.62580395,3353.6,3353.2,6.95748309]
[1735509463390,2.32706395,3353.6,3353.2,6.95748309]
[1735509463593,2.32706395,3353.6,3353.5,2.56169516]
[1735509464693,2.32706395,3353.6,3353.5,5.76949516]
[1735509464890,2.32706395,3354.0,3353.5,12.49085673]
[1735509465086,2.32706395,3354.0,3353.9,0.29871]
[1735509466396,3.4769441,3354.1,3353.7,0.527]
[1735509466397,2.32706395,3354.3,3353.8,4.69171811]
[1735509466699,3.50651,3353.9,3353.8,4.69171811]
[1735509467289,3.2078,3353.9,3353.7,4.69171811]
[1735509467594,0.29872,3353.8,3353.7,4.69171811]
[1735509467799,0.29872,3353.8,3353.7,5.17891811]
[1735509468291,0.29871,3353.9,3353.7,5.47764811]
[1735509468490,0.29871,3353.9,3353.8,0.29871]
[1735509468698,2.32706395,3354.0,3353.7,0.4872]
[1735509468898,0.29871,3353.9,3353.7,0.78592]
[1735509469299,2.32706395,3354.0,3353.7,0.78592]
[1735509469599,0.29872,3353.8,3353.7,0.78592]
[1735509470099,0.29871,3353.9,3353.8,0.29871]
[1735509470599,0.29871,3353.9,3353.7,0.78592]
[1735509470801,0.29871,3353.9,3353.8,0.29872]
[1735509471096,0.29873,3353.7,3353.6,4.69171811]
[1735509472988,0.29873,3353.7,3353.2,9.60708772]
[1735509472989,0.29873,3353.7,3353.3,4.69171811]
[1735509473498,0.29873,3353.7,3353.6,0.29873]
[1735509474597,0.29873,3353.7,3353.3,4.69171811]
[1735509474798,0.29873,3353.7,3353.5,0.29873]
[1735509475096,0.29871,3353.9,3353.7,0.29873]
[1735509475499,0.29872,3353.8,3353.7,0.29873]
[1735509475695,0.29872,3353.9,3353.7,0.29873]
[1735509475890,0.29872,3353.9,3353.6,4.1993]
[1735509475891,0.29873,3353.7,3353.6,3.2078]
[1735509476101,0.29874,3353.6,3353.3,5.20631811]
[1735509476396,0.29874,3353.6,3353.5,0.29874]
[1735509477191,5.53486395,3354.0,3353.3,4.69171811]
[1735509477392,5.53486395,3354.0,3353.4,0.29875]
[1735509477393,0.29874,3353.6,3353.4,0.29875]
[1735509477687,5.53486395,3354.0,3353.4,0.29875]
[1735509477893,0.29874,3353.5,3353.4,0.29875]
[1735509481199,3.50654,3353.5,3353.4,0.29875]
[1735509481592,0.29875,3353.4,3353.3,4.69171811]
[1735509481794,0.83425,3353.4,3353.3,4.69171811]
[1735509482091,3.2078,3353.5,3353.2,4.69171811]
[1735509482401,3.2078,3353.5,3353.4,0.29875]
[1735509486801,0.29874,3353.6,3353.5,0.29874]
[1735509487297,0.29873,3353.7,3353.6,0.29873]
[1735509488196,5.83357395,3353.9,3353.8,0.29872]
[1735509488497,5.53486395,3353.9,3353.8,0.29872]
[1735509489601,0.29873,3353.7,3353.6,1.28733]
[1735509489792,0.29872,3353.8,3353.6,0.9886]
[1735509489997,0.29873,3353.7,3353.6,1.28733]
[1735509490601,0.29873,3353.7,3353.6,0.9886]
[1735509490800,0.29873,3353.7,3353.6,1.28733]
[1735509492697,3.2078,3353.9,3353.6,0.9886]
[1735509492901,0.29872,3353.8,3353.7,0.29872]
[1735509493704,3.2078,3353.9,3353.6,0.9886]
[1735509494007,0.29872,3353.8,3353.7,0.29872]
[1735509494506,0.29873,3353.7,3353.6,1.28733]
[1735509494703,0.29873,3353.6,3353.5,4.69171811]
[1735509495802,3.4769441,3353.7,3353.2,0.29877]
[1735509496003,0.29874,3353.6,3353.5,0.29874]
[1735509496708,3.4769441,3353.7,3353.1,1.0382]
[1735509497007,0.29877,3353.2,3353.1,8.05830157]
[1735509497201,0.29877,3353.2,3353.1,7.31888157]
[1735509497609,0.29876,3353.3,3353.2,0.29877]
[1735509498906,2.34218717,3353.4,3352.9,6.20667982]
[1735509499107,2.64094717,3353.4,3352.9,6.20667982]
[1735509499309,0.29876,3353.3,3352.9,6.20667982]
[1735509499609,0.29876,3353.3,3353.1,0.29877]
[1735509500908,0.29876,3353.3,3353.1,4.69277982]
[1735509501108,0.29876,3353.3,3353.2,0.29877]
[1735509501502,2.34218717,3353.5,3353.1,4.99154982]
[1735509501806,0.29877,3353.2,3353.1,4.99154982]
[1735509502002,0.29877,3353.2,3353.1,4.69277982]
[1735509502197,0.29877,3353.2,3353.1,4.99155982]
[1735509503009,3.50657,3353.2,3353.1,4.99155982]
[1735509503308,3.50657,3353.2,3353.1,0.29878]
[1735509503505,3.2078,3353.2,3353.0,4.69277982]
[1735509503711,3.2078,3353.2,3353.0,4.99156982]
[1735509504003,3.2078,3353.2,3353.0,4.69277982]
[1735509504205,0.29878,3353.1,3353.0,4.69277982]
[1735509504406,0.29879,3353.0,3352.9,4.69277982]
[1735509506012,2.34218717,3353.1,3352.9,0.492]
[1735509506309,2.34218717,3353.1,3353.0,0.29879]
[1735509507106,0.29879,3353.0,3352.9,0.79079]
[1735509507303,0.29879,3353.0,3352.9,4.69277982]
[1735509508615,0.29879,3353.0,3352.6,4.69277982]
[1735509508616,0.29881,3352.7,3352.6,4.69277982]
[1735509510117,0.29887,3352.1,3351.9,1.0114]
[1735509510511,0.29887,3352.1,3351.9,1.31029]
[1735509510719,3.2078,3352.3,3351.8,7.02010157]
[1735509511015,0.29887,3352.1,3351.8,7.02010157]
[1735509511213,0.29889,3351.9,3351.8,7.02010157]
[1735509511416,1.0031,3352.2,3351.7,1.5334]
[1735509511616,0.29889,3351.8,3351.7,1.5334]
[1735509511911,0.29891,3351.6,3351.5,3.2078]
[1735509512113,0.29889,3351.9,3351.7,0.2989]
[1735509512308,0.29886,3352.2,3351.5,5.47075516]
[1735509512614,0.29886,3352.2,3352.0,0.29887]
[1735509512818,0.29886,3352.2,3352.1,0.5296]
[1735509513320,3.80912019,3352.2,3352.1,0.5296]
[1735509514518,0.29886,3352.2,3352.1,0.5296]
[1735509515317,3.2078,3352.3,3352.1,0.5296]
[1735509515521,3.2078,3352.3,3352.2,1.35146]
[1735509515817,2.33773777,3352.7,3352.6,0.29882]
[1735509516618,2.63654777,3352.7,3352.6,0.29882]
[1735509516916,0.29881,3352.7,3352.6,0.29882]
[1735509519219,3.2078,3352.8,3352.7,0.29881]
[1735509519418,3.37223777,3353.2,3352.4,2.26295516]
[1735509519419,0.29879,3353.0,3352.4,2.26295516]
[1735509519916,0.2988,3352.9,3352.8,0.2988]
[1735509520313,5.54553777,3353.2,3352.4,2.26295516]
[1735509520512,0.29878,3353.1,3352.4,3.01006516]
[1735509520712,0.29878,3353.1,3353.0,0.29879]
[1735509522925,0.29879,3353.0,3352.8,0.991]
[1735509523127,0.29879,3353.0,3352.8,1.2898]
[1735509523526,0.29879,3353.0,3352.8,0.991]
[1735509523728,0.29879,3353.0,3352.9,0.2988]
[1735509525328,3.2078,3353.2,3352.9,0.29879]
[1735509525629,0.29879,3353.0,3352.9,0.29879]
[1735509526422,0.2988,3352.9,3352.8,1.2898]
[1735509527223,0.2988,3352.9,3352.8,0.991]
[1735509527427,0.2988,3352.9,3352.8,0.5053]
[1735509527721,0.29878,3353.1,3353.0,0.29878]
[1735509527929,3.2078,3353.2,3352.8,0.5053]
[1735509528129,3.2078,3353.2,3353.1,0.29878]
[1735509528626,3.2078,3353.2,3353.1,0.4861]
[1735509528826,3.50657,3353.2,3353.1,0.4861]
[1735509531122,3.2078,3353.2,3353.1,0.78488]
[1735509531319,5.54484058,3353.7,3353.1,0.4861]
[1735509531524,0.29877,3353.2,3353.1,0.4861]
[1735509531722,3.2078,3353.7,3353.1,0.4861]
[1735509531927,3.2078,3353.7,3353.5,0.29874]
[1735509532231,3.50653,3353.7,3353.6,0.5036]
[1735509533031,3.2078,3353.7,3353.1,0.4861]
[1735509533326,3.2078,3353.7,3353.3,0.29876]
[1735509533327,0.29876,3353.4,3353.3,0.29876]
[1735509533729,0.29875,3353.5,3353.3,0.29875]
[1735509533929,0.29875,3353.5,3353.4,0.29875]
[1735509535030,3.2078,3353.7,3353.2,0.5036]
[1735509535229,3.50653,3353.7,3353.6,0.29873]
[1735509535823,3.2078,3353.7,3353.6,0.29873]
[1735509536031,3.2078,3353.7,3353.6,2.56168516]
[1735509536324,2.33704058,3353.9,3353.8,0.29872]
[1735509537323,3.2078,3354.1,3354.0,0.2987]
[1735509537622,0.29867,3354.3,3354.1,0.29869]
[1735509537827,2.63570058,3354.4,3354.3,0.29867]
[1735509538025,2.33704058,3354.4,3354.3,0.29867]
[1735509538232,2.33704058,3354.4,3354.2,1.0018]
[1735509538429,2.33704058,3354.4,3354.2,1.30048]
[1735509538829,0.29867,3354.3,3354.2,1.0018]
[1735509539929,0.5005,3354.4,3353.8,3.2078]
[1735509540124,0.5005,3354.4,3353.8,4.01572]
[1735509540431,0.2987,3354.0,3353.9,0.29871]
[1735509540732,0.29871,3353.9,3353.8,0.5092]
[1735509540923,0.82171,3353.9,3353.8,0.5092]
[1735509544135,0.29878,3353.1,3352.9,3.50659]
[1735509544335,0.29877,3353.2,3353.1,0.29878]
[1735509544633,3.2078,3353.5,3353.0,0.29878]
[1735509544837,0.29878,3353.1,3353.0,0.29878]
[1735509545329,0.29877,3353.2,3353.1,0.29878]
[1735509545535,3.2078,3353.5,3353.1,0.29878]
[1735509545831,0.29877,3353.3,3353.2,0.29877]
[1735509547335,0.29877,3353.2,3353.1,0.29878]
[1735509547836,3.2078,3353.5,3353.1,0.29878]
[1735509548231,0.29879,3353.0,3352.9,3.6967]
[1735509548536,0.29879,3353.0,3352.9,3.2078]
[1735509549239,0.29882,3352.6,3352.5,10.2315495]
[1735509549436,0.29882,3352.6,3352.5,3.2078]
[1735509549734,0.29882,3352.6,3352.5,0.29883]
[1735509550329,0.29883,3352.5,3352.2,8.0687495]
[1735509550529,3.2078,3353.1,3352.4,0.29884]
[1735509550530,0.29883,3352.6,3352.4,0.29884]
[1735509551135,3.2078,3353.1,3352.2,1.045]
[1735509551333,0.29882,3352.7,3352.5,0.29883]
[1735509551526,3.2078,3353.1,3352.5,0.29883]
[1735509551732,0.29882,3352.6,3352.5,0.29883]
[1735509552232,0.29884,3352.5,3352.3,0.29884]
[1735509552536,0.29884,3352.4,3352.3,0.29884]
[1735509552738,0.83014,3352.5,3352.3,0.29884]
[1735509553031,0.5313,3352.5,3352.4,0.29884]
[1735509554033,0.5313,3352.5,3352.2,1.045]
[1735509554231,0.83013,3352.5,3352.2,1.045]
[1735509554427,0.83013,3352.5,3352.3,0.29885]
[1735509554635,0.5313,3352.5,3352.3,0.29885]
[1735509554834,0.83013,3352.5,3352.3,0.29885]
[1735509555234,0.5313,3352.5,3352.2,1.045]
[1735509555433,0.83014,3352.5,3352.4,0.29884]
[1735509557643,3.2078,3352.6,3352.2,1.045]
[1735509557940,3.2078,3352.6,3352.5,0.29883]
[1735509558336,0.29881,3352.8,3352.6,0.29882]
[1735509559143,0.5075,3353.0,3352.6,0.29882]
[1735509559338,0.29881,3352.7,3352.6,0.29882]
[1735509560441,0.29881,3352.8,3352.7,0.29881]
[1735509560946,0.2988,3352.9,3352.7,0.29881]
[1735509561137,0.2988,3352.9,3352.8,0.526]
[1735509561338,0.2988,3352.9,3352.8,1.0562]
[1735509562441,0.5075,3353.0,3352.8,1.0562]
[1735509562646,0.29878,3353.1,3353.0,0.29878]
[1735509562943,6.05884058,3353.2,3352.8,1.0562]
[1735509563145,0.29879,3353.0,3352.9,0.2988]
[1735509565044,6.05884058,3353.2,3352.8,1.0562]
[1735509565248,0.2988,3353.0,3352.9,0.2988]
[1735509565545,0.2988,3352.9,3352.8,1.355]
[1735509567349,0.2988,3352.9,3352.8,1.0562]
[1735509570138,0.29883,3352.6,3352.5,0.29883]
[1735509570544,3.2078,3352.8,3352.2,1.0519]
[1735509571044,0.29883,3352.6,3352.5,0.29883]
[1735509572549,0.29884,3352.5,3352.4,0.29884]
[1735509577651,0.29885,3352.3,3352.2,1.35075]
[1735509578050,0.29885,3352.3,3352.2,1.0519]
[1735509578753,0.29886,3352.2,3352.1,3.2078]
[1735509579857,0.29887,3352.1,3352.0,0.5242]
[1735509581260,3.2078,3352.3,3352.0,0.5242]
[1735509581448,0.29886,3352.2,3352.1,0.29886]
[1735509581760,0.29886,3352.3,3352.2,0.29885]
[1735509581948,0.29884,3352.4,3352.3,0.29885]
[1735509582451,0.29886,3352.3,3352.2,0.29885]
[1735509586652,0.29887,3352.2,3352.1,0.29886]
[1735509588155,0.29884,3352.5,3352.4,0.29884]
[1735509589963,0.5144,3352.6,3352.0,10.7557495]
[1735509590163,0.29887,3352.2,3352.1,0.29886]
[1735509590859,0.29887,3352.2,3352.0,3.732]
[1735509591065,0.29887,3352.1,3352.0,4.03087]
[1735509591259,0.29887,3352.1,3352.0,3.732]
[1735509591461,0.29887,3352.1,3352.0,4.03088]
[1735509591956,0.29887,3352.1,3352.0,0.5242]
[1735509593254,2.63591058,3352.1,3352.0,0.5242]
[1735509594867,0.29887,3352.1,3352.0,0.5242]
[1735509595460,3.80443087,3352.2,3351.6,0.29891]
[1735509595667,3.80443087,3352.2,3352.0,0.29887]
[1735509596062,3.50556087,3352.2,3351.7,0.5442]
[1735509596360,0.29889,3351.8,3351.7,0.8431]
[1735509596773,0.29889,3351.8,3351.7,0.5442]
[1735509596964,3.2078,3352.0,3351.6,7.0237495]
[1735509597173,0.2989,3351.7,3351.6,7.0237495]
[1735509597572,0.29892,3351.5,3351.4,7.5273495]
[1735509598167,3.50672,3351.5,3351.4,7.5273495]
[1735509598667,3.50672,3351.5,3351.4,0.5036]
[1735509599573,0.29893,3351.4,3351.3,0.5442]
[1735509599872,0.80503,3351.4,3351.3,0.5442]
[1735509600471,0.29893,3351.4,3351.3,0.84314]
[1735509600673,0.29895,3351.2,3351.1,0.5036]
[1735509600874,0.29897,3351.0,3350.9,7.5533495]
[1735509601073,0.29897,3351.0,3350.9,7.0237495]
[1735509601477,0.29898,3350.8,3350.7,7.0237495]
[1735509602069,0.83907,3351.0,3350.7,7.0237495]
[1735509602277,3.2078,3351.1,3351.0,0.29897]
[1735509603376,2.33886946,3351.2,3350.8,1.0413]
[1735509603578,2.33886946,3351.2,3351.1,0.29896]
[1735509604682,3.2078,3351.5,3351.3,0.29893]
[1735509604883,3.2078,3351.5,3351.4,0.5215]
[1735509605184,3.2078,3351.5,3351.4,1.0581]
[1735509605586,3.50672,3351.5,3351.4,1.0581]
[1735509606486,3.2078,3351.5,3351.1,0.29895]
[1735509606678,0.29896,3351.1,3351.0,1.0772]
[1735509608581,0.5358,3351.4,3350.6,0.547]
[1735509608782,0.5074,3351.0,3350.6,0.846]
[1735509609083,0.29899,3350.7,3350.6,0.846]
[1735509609278,0.29899,3350.7,3350.6,0.547]
[1735509609481,0.5074,3351.0,3350.6,0.547]
[1735509609882,2.87466946,3351.4,3350.7,2.26295516]
[1735509610185,2.33886946,3351.4,3351.3,0.29894]
[1735509610787,3.2078,3351.5,3351.0,0.5489]
[1735509610986,3.2078,3351.5,3351.1,0.5363]
[1735509611181,0.29893,3351.4,3351.1,0.5363]
[1735509611385,0.29893,3351.4,3351.3,0.29894]
[1735509611686,0.29893,3351.4,3351.1,0.5363]
[1735509611687,0.29891,3351.6,3351.4,0.29892]
[1735509612087,0.29891,3351.6,3351.5,0.5489]
[1735509612686,0.29891,3351.6,3351.5,0.84782]
[1735509612983,0.29891,3351.6,3351.5,0.5489]
[1735509613387,3.721,3351.9,3351.5,0.5489]
[1735509613784,0.29891,3351.6,3351.5,0.5489]
[1735509615089,0.29894,3351.4,3351.2,0.83154]
[1735509615292,0.29895,3351.2,3351.1,0.5363]
[1735509615491,0.29896,3351.1,3351.0,0.5462]
[1735509615891,0.29896,3351.2,3351.0,0.84517]
[1735509616193,0.29896,3351.1,3351.0,0.5462]
[1735509616394,3.2078,3351.4,3350.8,0.5266]
[1735509616592,0.29897,3350.9,3350.8,0.5266]
[1735509616985,0.29898,3350.8,3350.7,7.0237495]
[1735509617299,0.74738,3351.2,3350.5,1.0816]
[1735509617589,0.299,3350.6,3350.5,1.0816]
[1735509619693,0.5285,3350.9,3350.5,1.0816]
[1735509619898,3.2078,3351.2,3350.5,1.0816]
[1735509620095,0.29898,3350.9,3350.8,0.29898]
[1735509620294,0.29899,3350.8,3350.6,0.299]
[1735509620595,0.299,3350.6,3350.5,1.0816]
[1735509621195,0.299,3350.6,3350.5,1.38061]
[1735509621395,3.2078,3350.8,3350.5,1.38061]
[1735509621594,0.299,3350.7,3350.6,0.299]
[1735509621991,3.2078,3350.8,3350.5,1.0816]
[1735509622197,0.299,3350.6,3350.5,1.38061]
[1735509623098,0.5427,3350.7,3349.8,7.0237495]
[1735509623302,0.5427,3350.7,3349.8,7.3228195]
[1735509623303,0.29905,3350.1,3349.8,7.3228195]
[1735509623598,3.2078,3350.2,3349.7,8.0670495]
[1735509623796,0.29907,3349.9,3349.7,8.3661295]
[1735509624694,0.29906,3350.0,3349.8,0.29907]
[1735509625199,3.2078,3350.2,3349.7,8.0670495]
[1735509625507,3.2078,3350.2,3350.1,0.29905]
[1735509626199,0.5376,3350.6,3349.7,1.0433]
[1735509626200,0.29906,3350.0,3349.8,0.29907]
[1735509626499,0.29906,3350.0,3349.7,1.0433]
[1735509626500,0.29907,3349.8,3349.7,1.0433]
[1735509627597,0.29907,3349.9,3349.7,1.34238]
[1735509628295,0.4959,3350.0,3349.7,1.0433]
[1735509628898,0.79496,3350.0,3349.8,0.29907]
[1735509629702,0.4959,3350.0,3349.7,1.0433]
[1735509630002,0.4959,3350.0,3349.9,0.29906]
[1735509630199,0.79496,3350.0,3349.9,0.29906]
[1735509630396,0.29907,3349.9,3349.8,0.29907]
[1735509631995,0.29907,3349.8,3349.3,3.2078]
[1735509632307,0.29909,3349.6,3349.5,0.2991]
[1735509633501,0.4754,3349.9,3349.4,0.5012]
[1735509633502,0.29908,3349.8,3349.4,0.5012]
[1735509633797,0.29908,3349.8,3349.7,0.29908]
[1735509634099,0.4754,3349.9,3349.4,0.5012]
[1735509634303,0.4959,3350.0,3349.9,0.29906]
[1735509636702,0.4959,3350.0,3349.4,0.5012]
[1735509636902,0.29907,3349.8,3349.7,0.29908]
[1735509637606,0.4959,3350.0,3349.4,0.5012]
[1735509637795,0.29907,3349.9,3349.7,0.29908]
[1735509638200,0.2991,3349.5,3349.4,0.5012]
[1735509638407,2.26295516,3349.9,3349.2,1.0219]
[1735509638408,0.29912,3349.3,3349.2,0.79502]
[1735509638603,0.29912,3349.3,3349.2,0.4959]
[1735509639102,3.2078,3349.7,3349.3,0.29911]
[1735509639302,0.29911,3349.4,3349.3,0.29911]
[1735509639803,0.29911,3349.4,3349.2,0.79502]